{"text_format":"2","workbook":"xlsx","n_sheets":6,"sheets":["Cuestionario PN","Cuestionario Sociedades","PLANTILLA","Código actividades","Tarifa PN","Tarifas SIMPLE"],"not_rendered":{"charts":0,"images":2,"macros":0,"external_links":0,"defined_names":1,"comments":0,"pivot_tables":0},"unopened":[],"bounds":{"document_bytes":16777216,"sheet_cells":100000,"run_cost":"one","rows_first":2000,"rows_last":500,"rows_between":2000,"halvings":0,"cell_chars":16384,"cell_head_chars":4096},"cells_cut":0,"cells_raw":0,"read":"whole","date_system":"1900"}

{"sheet":"Cuestionario PN","index":0,"n_rows":34,"n_cols":7,"rows_kept":34,"cut":false,"hidden":false,"merged":[[31,0,31,6],[33,0,33,6],[34,0,34,6],[1,0,1,6],[5,1,5,3],[6,1,6,3],[14,4,16,4],[15,1,15,3],[30,0,30,6],[22,1,22,4],[28,0,28,6],[7,1,7,4],[8,1,8,4],[9,1,9,4],[23,1,23,4]]}
[]
["MATRIZ PARA DECIDIR SI PUEDE PERTENECER AL RÉGIMEN SIMPLE"]
[]
[null,"A. PERSONA NATURAL NACIONAL O EXTRANJERA",{"$nulls":4},"S/N"]
[]
[1,"Residente en Colombia?",{"$nulls":4},"SI"]
[2,"Desarrolla una empresa?",{"$nulls":4},"SI"]
[3,"Ingresos brutos del año anterior menores  a 100.000 UVT? Revise el monto consolidado si es socio o administra sociedades. Art. 905 E.T. \nEl tope de ingresos brutos del año anterior deberán ser menores a 12.000 UVT para el caso de personas que presten servicios profesionales, de consultoría y científicos en los que predomine el factor intelectual sobre el material (diferentes  de las actividades de educación, atención de la salud humana y asistencia social del grupo 4) ",{"$nulls":4},"SI"]
[4,"Ingresos brutos del presente año de inicio menores  a 100.000 UVT ? Revise el monto consolidado si es socio o administra sociedades. Art. 905 E.T.\nPara los servicios profesionales del grupo 5, el tope de ingresos brutos del presente año deberán ser inferiores a 12.000 UVT ",{"$nulls":4},"SI"]
[5,"Si realiza actividades de recolección, recuperación y comercialización de desperdicios, desechos y chatarra, de que trata el grupo 6 ¿verificó que las utilidades netas sean iguales o inferiores al 3% del ingreso bruto?. Nral 11 Art. 906 E.T.",{"$nulls":4},"SI"]
[6,"Cuenta con inscripción activa en el RUT y con todos mecanismos de cumplimiento del sistema de facturación electrónica?",{"$nulls":4},"SI"]
[7,"Esta en capacidad de tener firma electrónica?",{"$nulls":4},"SI"]
[8,"En el  ejercicio de sus actividades se configuran los elementos propios de un contrato realidad laboral?",{"$nulls":4},"NO"]
[9,"Se dedica a las actividades de microcrédito?",{"$nulls":4},"NO"]
[10,"Es intermediario en gestión y venta de activos?",null,null,"Con ingresos brutos ≥  al 20% de los ingresos totales",null,"NO"]
[11,"Recibe arrendamientos?",{"$nulls":4},"NO"]
[12,"Realiza actividades que generan rentas pasivas? (dividendos, intereses, explotación de intangibles, etc, art. 884 E.T)",{"$nulls":4},"NO"]
[13,"Presta servicios de asesoría financiera y/o estructuración de créditos?",{"$nulls":4},"NO"]
[14,"Realiza actividades de factoraje?",{"$nulls":4},"NO"]
[15,"Realiza actividades de importación, exportación o comercialización de automóviles?",{"$nulls":4},"NO"]
[16,"Realiza la actividad de importación de combustibles?",{"$nulls":4},"NO"]
[17,"Desarrolla simultáneamente una de las actividades ubicadas en los numerales  10 a 18 y otra diferente?.",{"$nulls":4},"NO"]
[18,"¿Tiene rentas exentas o descuentos tributarios significativos? Recuerde que en el sistema SIMPLE se pierden estos beneficios",{"$nulls":4},"NO"]
[19,"Realizó la matriz de decisión y determinó un ahorro en impuestos según sus ingresos ,la rentabilidad, el efecto en el IVA para el Grupo 1 y el costo de los aportes obligatorios a pensiones del personal vinculado?",{"$nulls":4},"SI"]
[]
[]
[null,"¿SE PUEDE ACOGER AL RÉGIMEN SIMPLE?",{"$nulls":4},{"$f":"IF(AND(G6=\"SI\",G7=\"SI\",G8=\"SI\",G9=\"SI\",G10=\"SI\",G11=\"SI\",G12=\"SI\",G13=\"NO\",G14=\"NO\",G15=\"NO\",G16=\"NO\",G17=\"NO\",G18=\"NO\",G19=\"NO\",G20=\"NO\",G21=\"NO\",G22=\"NO\",G23=\"NO\",G24=\"SI\"),\"SÍ\",\"NO\")","v":"SÍ"}]
[]
["Si al responder alguna de las preguntas propuestas aparece el semáforo en rojo, se traducirá  que   el contribuyente no podrá acogerse este sistema."]
[]
["* Si al evaluar todas las anteriores variables su cliente acierta todas las respuestas marcadas con color azul en el SI  y en el NO, "]
["   tal como están estructuradas, usted se puede acoger al régimen SIMPLE."]
[]
["* Con una sola respuesta en sentido contrario  a las afirmaciones del SI o NO propuestas,  su cliente no podrá pertenecer al régimen SIMPLE. "]

{"sheet":"Cuestionario Sociedades","index":1,"n_rows":45,"n_cols":4,"rows_kept":45,"cut":false,"hidden":false,"merged":[[43,0,43,3],[2,0,2,3],[21,2,23,2],[40,0,40,3],[41,0,41,3],[42,0,42,3],[38,1,38,3]]}
[]
[]
["MATRIZ PARA DECIDIR SI  PUEDE PERTENECER AL REGIMEN SIMPLE"]
[]
[]
[]
[]
[null,"B.SOCIEDADES.",null,"S/N"]
[]
[1,"Sus accionistas son personas naturales residentes en Colombia?",null,"SI"]
[2,"Ingresos brutos del año anterior menores a 100.000  UVT?\nEl tope de ingresos brutos del año anterior deben ser menores  a 12.000 UVT para el caso de personas que presten servicios profesionales, de consultoría y científicos en los que predomine el factor intelectual sobre el material (diferentes de las  actividades de educación, atención de la salud humana y asistencia social del grupo 4) ",null,"SI"]
[3,"Ingresos brutos del presente  año de inicio menores a 100.000 UVT?\nPara los servicios profesionales del grupo 5, el tope de ingresos brutos del presente año deberán ser inferiores a 12.000 UVT ",null,"SI"]
[4,"Si realiza actividades de recolección, recuperación y comercialización de desperdicios, desechos y chatarra, de que trata el grupo 6 ¿verificó que las utilidades netas sean iguales o inferiores al 3% del ingreso bruto?",null,"SI"]
[5,"Cuenta con inscripción activa en el RUT y con todos mecanismos de cumplimiento del sistema de facturación electrónica?",null,"SI"]
[6,"Esta en capacidad de tener firma electrónica?",null,"SI"]
[7,"Es una persona jurídica extranjera o un establecimiento permanente de la persona jurídica extranjera?",null,"NO"]
[8,"Los socios o administradores de esta sociedad tienen en sustancia una relación laboral con el contratante por tratarse de servicios personales prestados con habitualidad y subordinación?",null,"NO"]
[9,"Esta sociedad es una filial, subsidiaria, agencia o sucursal de personas jurídicas nacionales o extranjeras no residentes?",null,"NO"]
[10,"Esta sociedad es accionista, sucriptora, partícipe, fideicomitente o beneficiaria de otras sociedades  o entidades legales en Colombia o en el exterior?.",null,"NO"]
[11,"Esta sociedad es una entidad financiera? ",null,"NO"]
[12,"Esta sociedad realiza actividades de microcrédito?.",null,"NO"]
[13,"Es intermediaria en gestión y venta de activos?","Con ingresos brutos ≥ al 20% de los ingresos totales","NO"]
[14,"Recibe arrendamientos?",null,"NO"]
[15,"Realiza actividades que generan rentas pasivas (dividendos, intereses, explotación de intangibles, etc, art. 884 E.T.)?",null,"NO"]
[16,"Realiza actividades de factoraje?",null,"NO"]
[17,"Presta servicios de asesoría financiera y/o estructuración de créditos?",null,"NO"]
[18,"Realiza la actividad de generacion,transmisión,distribución o comercialización de energía eléctrica?.",null,"NO"]
[19,"Realiza actividades de importación, exportación o comercialización de automóviles?",null,"NO"]
[20,"Realiza la actividad de importación de combustibles?",null,"NO"]
[21,"Se dedica a la producción o comercializacion de armas de fuego, municiones y pólvora,explosivos y detonantes? ",null,"NO"]
[22,"Desarrolla simultáneamente una de las actividades ubicadas en los numerales  14 a 23 y otra diferente?",null,"NO"]
[23,"¿Tiene rentas exentas o descuentos tributarios significativos? Recuerde que en el sistema SIMPLE se pierden estos beneficios",null,"NO"]
[24,"Esta sociedad es el resultado de una segregación, división o escisión de un negocio, que haya ocurrido en los 5 años anteriores al momento de la solicitud de inscripción a este régimen?",null,"NO"]
[25,"Realizó la matriz de decisión y determinó un ahorro de impuestos según sus ingresos, la rentabilidad, el efecto en el IVA para el Grupo 1 y el costo de los aportes a pensiones obligatorias del personal vinculado?",null,"SI"]
[]
[]
[null,"¿SE PUEDE ACOGER AL RÉGIMEN SIMPLE?",null,{"$f":"IF(AND(D10=\"SI\",D11=\"SI\",D12=\"SI\",D13=\"SI\",D14=\"SI\",D15=\"SI\",D16=\"NO\",D17=\"NO\",D18=\"NO\",D19=\"NO\",D20=\"NO\",D21=\"NO\",D22=\"NO\",D23=\"NO\",D24=\"NO\",D25=\"NO\",D26=\"NO\",D27=\"NO\",D28=\"NO\",D29=\"NO\",D30=\"NO\",D31=\"NO\",D32=\"NO\",D34=\"SI\",D33=\"NO\"),\"SÍ\",\"NO\")","v":"SÍ"}]
[]
[null,"Si al responder algunas de la preguntas propuestas el semáforo se prende en rojo, significará  que el contribuyente no podrá acogerse este sistema."]
[]
["* Si al evaluar todas las anteriores variables su cliente acierta todas las respuestas marcadas con color azul en el SI y en el NO,"]
["    tal como están estructuradas, usted se puede acoger al régimen SIMPLE."]
[]
["* Con una sola respuesta en sentido contrario  a las afirmaciones del SI o NO propuestas,  su cliente no podrá pertenecer al régimen SIMPLE. "]
["    "]

{"sheet":"PLANTILLA","index":2,"n_rows":74,"n_cols":5,"rows_kept":74,"cut":false,"hidden":false,"merged":[[47,0,47,3],[58,0,58,3],[4,0,4,3],[2,0,2,3],[9,0,9,3],[39,0,39,1]]}
[]
[]
["CONVENIENCIA DEL SISTEMA SIMPLE DE TRIBUTACIÓN VS RENTA ORDINARIA"]
[]
["Arts. 903 a 916 E.T. Actualizado con Ley 2277 de 2022"]
[]
[null,null,"Casillas diligenciables"]
[null,null,"Casillas no diligenciables"]
[]
["DATOS INFORMATIVOS"]
[]
["TIPO DE CONTRIBUYENTE:",null,"Persona Natural"]
[]
["Digite su Código CIIU actividad principal",null,141,null,{"$f":"IF(C18=\"T1\",\"\",IF(C18=\"T2\",\"\",IF(C18=\"T3\",\"\",IF(C18=\"T4\",\"\",\"NO PUEDE ACOGERSE\"))))","v":""}]
[]
["Digite su Código CIIU actividad secundaria",null,144]
[]
["Tarifa aplicable actividad principal",null,{"$f":"VLOOKUP(C14,'Código actividades'!A5:E457,5,FALSE)","v":"T2"}]
[]
["Tarifa aplicable actividad secundaria",null,{"$f":"IFERROR(VLOOKUP(C16,'Código actividades'!A5:E457,5,FALSE),C18)","v":"T2"}]
[]
["Es responsable de IVA antes de pertenecer al SIMPLE?",null,"SI"]
[]
["Ingresos brutos anuales (fiscales)",null,600000000]
[]
["Ingresos No Constitutivos de Renta ",null,18000000]
[]
["Ingresos Netos - Base SIMPLE",null,{"$f":"+C24-C26","v":582000000}]
[]
["Porcentaje rentabilidad sobre ingresos brutos",null,0.15]
[]
["Renta líquida",null,{"$f":"ROUND((C24*C30),-3)","v":90000000}]
[]
["Valor UVT",null,42412]
[]
["Tarifa ICA (Por mil)",null,0]
[]
["¿Avisos y tableros?",null,"NO"]
[]
["Porcentaje de compras con IVA\nSolo para el grupo 1",null,0]
[]
["Ingresos recaudados por medios electrónicos",null,0]
[]
["Aportes anuales a pensiones obligatorias a cargo del empleador",null,1670000]
[]
[]
[]
["DETERMINACIÓN DE IMPUESTOS POR EL RÉGIMEN ORDINARIO"]
[]
["Impuesto de renta sociedades",null,{"$f":"ROUND((IF(C12=\"Sociedad\",C32*35%,0)),-3)","v":0}]
["Impuesto de renta Persona Natural",null,{"$f":"IF(C12=\"Persona Natural\",SUM('Tarifa PN'!E6:E12),0)","v":9932000}]
["IVA"]
["ICA",null,{"$f":"ROUND((+C24*C36/1000),-3)","v":0}]
["Avisos y tableros",null,{"$f":"+IF(C38=\"SI\",(C53*15%),0)","v":0}]
[]
["TOTAL IMPUESTOS SISTEMA ORDINARIO",null,{"$f":"ROUND((SUM(C50:C54)),-3)","v":9932000}]
[]
[]
["DETERMINACIÓN DE IMPUESTO RÉGIMEN SIMPLE"]
[]
[]
["Componente ICA territorial",null,{"$f":"+C53+C54","v":0}]
["Componente SIMPLE Nacional",null,{"$f":"ROUND((+C64-C62),-3)","v":11640000}]
["TOTAL IMPUESTO SIMPLE",null,{"$f":"MAX(IF(C18=\"T4\",'Tarifas SIMPLE'!E46,IF(C18=\"T3\",'Tarifas SIMPLE'!E36,IF(C18=\"T2\",'Tarifas SIMPLE'!E26,IF(C18=\"T1\",'Tarifas SIMPLE'!E15,IF(C18=\"T5\",'Tarifas SIMPLE'!E54,IF(C18=\"T6\",'Tarifas SIMPLE'!E64,0)))))),(IF(C20=\"T4\",'Tarifas SIMPLE'!E46,IF(C20=\"T3\",'Tarifas SIMPLE'!E36,IF(C20=\"T2\",'Tarifas SIMPLE'!E26,IF(C20=\"T1\",'Tarifas SIMPLE'!E15,IF(C20=\"T5\",'Tarifas SIMPLE'!E540,IF(C20=\"T6\",'Tarifas SIMPLE'!E64,0))))))))","v":11640000}]
["Descuento aportes a pensión",null,{"$f":"-MIN(C44,C63)","v":-1670000}]
["Descuento por pagos electrónicos",null,{"$f":"ROUND((IF(C63+C65=0,0,-MIN(C63+C65,(IF(C42*0.5%<=C63,C42*0.5%,C63))))),-3)","v":0}]
[]
["TOTAL IMPUESTO RÉGIMEN SIMPLE",null,{"$f":"SUM(C64:C67)","v":9970000}]
[]
[]
["DIFERENCIA ENTRE IMPUESTOS",null,{"$f":"+C56-C68","v":-38000}]
["IVA QUE SE GANA EN RENTABILIDAD ",null,{"$f":"+(C24+(C24*C40*0.19)-((C24*(1-C30))+(C24*(1-C30)*C40*0.19)))-(C24-(C24*(1-C30)))","v":0},{"$f":"+C72/C24","v":0}]
[]
["CONVENIENCIA DEL SISTEMA",null,{"$f":"IF(C71+C72>0,\"CONVIENE\",\"NO CONVIENE\")","v":"NO CONVIENE"}]

{"sheet":"Código actividades","index":3,"n_rows":457,"n_cols":5,"rows_kept":457,"cut":false,"hidden":true,"merged":[]}
[]
[]
[]
["Código CIIU","Tipo de Actividad","Agrupación por Tarifa","Descripción Actividad Económica","TARIFA"]
[4711,"Comercial",201,"Comercio al por menor en establecimientos no especializados con surtido compuesto principalmente por alimentos, bebidas o tabaco.","T1"]
[4721,"Comercial",201,"Comercio al por menor de productos agrícolas para el consumo en establecimientos especializados.","T1"]
[4722,"Comercial",201,"Comercio al por menor de leche, productos lácteos y huevos, en establecimientos especializados.","T1"]
[4723,"Comercial",201,"Comercio al por menor de carnes (incluye aves de corral), productos cárnicos, pescados y productos de mar, en establecimientos especializados.","T1"]
[4724,"Comercial",203,"Comercio al por menor de bebidas y productos del tabaco, en establecimientos especializados.","T1"]
[4729,"Comercial",201,"Comercio al por menor de otros productos alimenticios n.c.p., en establecimientos especializados.","T1"]
[9602,"Servicios",304,"Peluquería y otros tratamientos de belleza.","T1"]
[161,161,"Actividades de apoyo a la agricultura.","Actividades de apoyo a la agricultura","T2"]
[162,"Servicios",304,"Actividades de apoyo a la ganadería.","T2"]
[164,"Servicios",304,"Tratamiento de semillas para propagación.","T2"]
[240,"Servicios",304,"Servicios de apoyo a la silvicultura.","T2"]
[510,"Industrial",103,"Extracción de hulla (carbón de piedra).","T2"]
[520,"Industrial",103,"Extracción de carbón lignito.","T2"]
[610,"Industrial",103,"Extracción de petróleo crudo.","T2"]
[620,"Industrial",103,"Extracción de gas natural.","T2"]
[710,"Industrial",103,"Extracción de minerales de hierro.","T2"]
[721,"Industrial",103,"Extracción de minerales de uranio y de torio.","T2"]
[722,"Industrial",103,"Extracción de oro y otros metales preciosos.","T2"]
[723,"Industrial",103,"Extracción de minerales de níquel.","T2"]
[729,"Industrial",103,"Extracción de otros minerales metalíferos no ferrosos n.c.p.","T2"]
[811,"Industrial",103,"Extracción de piedra, arena, arcillas comunes, yeso y anhidrita.","T2"]
[812,"Industrial",103,"Extracción de arcillas de uso industrial, caliza, caolín y bentonitas.","T2"]
[820,"Industrial",103,"Extracción de esmeraldas, piedras preciosas y semipreciosas.","T2"]
[891,"Industrial",103,"Extracción de minerales para la fabricación de abonos y productos químicos.","T2"]
[892,"Industrial",103,"Extracción de halita (sal).","T2"]
[899,"Industrial",103,"Extracción de otros minerales no metálicos n.c.p.","T2"]
[910,"Servicios",304,"Actividades de apoyo para la extracción de petróleo y de gas natural.","T2"]
[990,"Servicios",304,"Actividades de apoyo para otras actividades de explotación de minas y canteras.","T2"]
[1011,"Industrial",101,"Procesamiento y conservación de carne y productos cárnicos.","T2"]
[1012,"Industrial",101,"Procesamiento y conservación de pescados, crustáceos y moluscos.","T2"]
[1020,"Industrial",101,"Procesamiento y conservación de frutas, legumbres, hortalizas y tubérculos.","T2"]
[1030,"Industrial",101,"Elaboración de aceites y grasas de origen vegetal y animal.","T2"]
[1040,"Industrial",101,"Elaboración de productos lácteos.","T2"]
[1051,"Industrial",101,"Elaboración de productos de molinería.","T2"]
[1052,"Industrial",101,"Elaboración de almidones y productos derivados del almidón.","T2"]
[1061,"Servicios",304,"Trilla de café.","T2"]
[1062,"Industrial",101,"Descafeinado, tostión y molienda del café.","T2"]
[1063,"Industrial",101,"Otros derivados del café.","T2"]
[1071,"Industrial",101,"Elaboración y refinación de azúcar.","T2"]
[1072,"Industrial",101,"Elaboración de panela.","T2"]
[1081,"Industrial",101,"Elaboración de productos de panadería.","T2"]
[1082,"Industrial",101,"Elaboración de cacao, chocolate y productos de confitería.","T2"]
[1083,"Industrial",101,"Elaboración de macarrones, fideos, alcuzcuz y productos farináceos similares.","T2"]
[1084,"Industrial",101,"Elaboración de comidas y platos preparados.","T2"]
[1089,"Industrial",101,"Elaboración de otros productos alimenticios n.c.p.","T2"]
[1090,"Industrial",101,"Elaboración de alimentos preparados para animales.","T2"]
[1101,"Industrial",103,"Destilación, rectificación y mezcla de bebidas alcohólicas.","T2"]
[1102,"Industrial",103,"Elaboración de bebidas fermentadas no destiladas.","T2"]
[1103,"Industrial",103,"Producción de malta, elaboración de cervezas y otras bebidas malteadas.","T2"]
[1104,"Industrial",103,"Elaboración de bebidas no alcohólicas, producción de aguas minerales y de otras aguas embotelladas.","T2"]
[1200,"Industrial",103,"Elaboración de productos de tabaco","T2"]
[1311,"Industrial",103,"Preparación e hilatura de fibras textiles.","T2"]
[1312,"Industrial",103,"Tejeduría de productos textiles.","T2"]
[1313,"Industrial",103,"Acabado de productos textiles.","T2"]
[1391,"Industrial",103,"Fabricación de tejidos de punto y ganchillo.","T2"]
[1392,"Industrial",103,"Confección de artículos con materiales textiles, excepto prendas de vestir.","T2"]
[1393,"Industrial",103,"Fabricación de tapetes y alfombras para pisos.","T2"]
[1394,"Industrial",103,"Fabricación de cuerdas, cordeles, cables, bramantes y redes.","T2"]
[1399,"Industrial",103,"Fabricación de otros artículos textiles n.c.p.","T2"]
[1410,"Industrial",101,"Confección de prendas de vestir, excepto prendas de piel.","T2"]
[1420,"Industrial",103,"Fabricación de artículos de piel.","T2"]
[1430,"Industrial",103,"Fabricación de artículos de punto y ganchillo.","T2"]
[1511,"Industrial",103,"Curtido y recurtido de cueros; recurtido y teñido de pieles.","T2"]
[1512,"Industrial",103,"Fabricación de artículos de viaje, bolsos de mano y artículos similares elaborados en cuero, y fabricación de artículos de talabartería y guarnicionería.","T2"]
[1513,"Industrial",103,"Fabricación de artículos de viaje, bolsos de mano y artículos similares; artículos de talabartería y guarnicionería elaborados en otros materiales","T2"]
[1521,"Industrial",101,"Fabricación de calzado de cuero y piel, con cualquier tipo de suela.","T2"]
[1522,"Industrial",101,"Fabricación de otros tipos de calzado, excepto calzado de cuero y piel.","T2"]
[1523,"Industrial",103,"Fabricación de partes del calzado.","T2"]
[1610,"Industrial",103,"Aserrado, acepillado e impregnación de la madera.","T2"]
[1620,"Industrial",103,"Fabricación de hojas de madera para enchapado; fabricación de tableros contrachapados, tableros laminados, tableros de partículas y otros tableros y paneles.","T2"]
[1630,"Industrial",103,"Fabricación de partes y piezas de madera, de carpintería y ebanistería para la construcción.","T2"]
[1640,"Industrial",103,"Fabricación de recipientes de madera.","T2"]
[1690,"Industrial",103,"Fabricación de otros productos de madera; fabricación de artículos de corcho, cestería y espartería.","T2"]
[1701,"Industrial",103,"Fabricación de pulpas (pastas) celulósicas; papel y cartón.","T2"]
[1702,"Industrial",103,"Fabricación de papel y cartón ondulado (corrugado); fabricación de envases, empaques y de embalajes de papel y cartón.","T2"]
[1709,"Industrial",103,"Fabricación de otros artículos de papel y cartón.","T2"]
[1811,"Servicios",304,"Actividades de impresión.","T2"]
[1812,"Servicios",304,"Actividades de servicios relacionados con la impresión.","T2"]
[1820,"Servicios",304,"Producción de copias a partir de grabaciones originales.","T2"]
[1910,"Industrial",103,"Fabricación de productos de hornos de coque.","T2"]
[1921,"Industrial",103,"Fabricación de productos de la refinación del petróleo.","T2"]
[1922,"Industrial",103,"Actividad de mezcla de combustibles.","T2"]
[2011,"Industrial",103,"Fabricación de sustancias y productos químicos básicos.","T2"]
[2012,"Industrial",103,"Fabricación de abonos y compuestos inorgánicos nitrogenados.","T2"]
[2013,"Industrial",103,"Fabricación de plásticos en formas primarias.","T2"]
[2014,"Industrial",103,"Fabricación de caucho sintético en formas primarias.","T2"]
[2021,"Industrial",103,"Fabricación de plaguicidas y otros productos químicos de uso agropecuario.","T2"]
[2022,"Industrial",103,"Fabricación de pinturas, barnices y revestimientos similares, tintas para impresión y masillas.","T2"]
[2023,"Industrial",103,"Fabricación de jabones y detergentes, preparados para limpiar y pulir; perfumes y preparados de tocador.","T2"]
[2029,"Industrial",103,"Fabricación de otros productos químicos n.c.p","T2"]
[2030,"Industrial",103,"Fabricación de fibras sintéticas y artificiales","T2"]
[2100,"Industrial",103,"Fabricación de productos farmacéuticos, sustancias químicas medicinales y productos botánicos de uso farmacéutico","T2"]
[2211,"Industrial",103,"Fabricación de llantas y neumáticos de caucho","T2"]
[2212,"Industrial",103,"Reencauche de llantas usadas","T2"]
[2219,"Industrial",103,"Fabricación de formas básicas de caucho y otros productos de caucho n.c.p.","T2"]
[2221,"Industrial",103,"Fabricación de formas básicas de plástico.","T2"]
[2229,"Industrial",103,"Fabricación de artículos de plástico n.c.p.","T2"]
[2310,"Industrial",103,"Fabricación de vidrio y productos de vidrio.","T2"]
[2391,"Industrial",103,"Fabricación de productos refractarios.","T2"]
[2392,"Industrial",103,"Fabricación de materiales de arcilla para la construcción.","T2"]
[2393,"Industrial",103,"Fabricación de otros productos de cerámica y porcelana.","T2"]
[2394,"Industrial",103,"Fabricación de cemento, cal y yeso.","T2"]
[2395,"Industrial",103,"Fabricación de artículos de hormigón, cemento y yeso.","T2"]
[2396,"Industrial",103,"Corte, tallado y acabado de la piedra.","T2"]
[2399,"Industrial",103,"Fabricación de otros productos minerales no metálicos n.c.p.","T2"]
[2410,"Industrial",102,"Industrias básicas de hierro y de acero","T2"]
[2421,"Industrial",103,"Industrias básicas de metales preciosos.","T2"]
[2429,"Industrial",103,"Industrias básicas de otros metales no ferrosos.","T2"]
[2431,"Industrial",102,"Fundición de hierro y de acero.","T2"]
[2432,"Industrial",103,"Fundición de metales no ferrosos.","T2"]
[2511,"Industrial",103,"Fabricación de productos metálicos para uso estructural.","T2"]
[2512,"Industrial",103,"Fabricación de tanques, depósitos y recipientes de metal, excepto los utilizados para el envase o transporte de mercancías.","T2"]
[2513,"Industrial",103,"Fabricación de generadores de vapor, excepto calderas de agua caliente para calefacción central.","T2"]
[2591,"Industrial",103,"Forja, prensado, estampado y laminado de metal; pulvimetalurgia.","T2"]
[2592,"Servicios",304,"Tratamiento y revestimiento de metales; mecanizado.","T2"]
[2593,"Industrial",103,"Fabricación de artículos de cuchillería, herramientas de mano y artículos de ferretería.","T2"]
[2599,"Industrial",103,"Fabricación de otros productos elaborados de metal n.c.p.","T2"]
[2610,"Industrial",103,"Fabricación de componentes y tableros electrónicos.","T2"]
[2620,"Industrial",103,"Fabricación de computadoras y de equipo periférico.","T2"]
[2630,"Industrial",103,"Fabricación de equipos de comunicación","T2"]
[2640,"Industrial",103,"Fabricación de aparatos electrónicos de consumo.","T2"]
[2651,"Industrial",103,"Fabricación de equipo de medición, prueba, navegación y control.","T2"]
[2652,"Industrial",103,"Fabricación de relojes","T2"]
[2660,"Industrial",103,"Fabricación de equipo de irradiación y equipo electrónico de uso médico y terapéutico.","T2"]
[2670,"Industrial",103,"Fabricación de instrumentos ópticos y equipo fotográfico.","T2"]
[2680,"Industrial",103,"Fabricación de medios magnéticos y ópticos para almacenamiento de datos.","T2"]
[2711,"Industrial",103,"Fabricación de motores, generadores y transformadores eléctricos.","T2"]
[2712,"Industrial",103,"Fabricación de aparatos de distribución y control de la energía eléctrica.","T2"]
[2720,"Industrial",103,"Fabricación de pilas, baterías y acumuladores eléctricos","T2"]
[2731,"Industrial",103,"Fabricación de hilos y cables eléctricos y de fibra óptica.","T2"]
[2732,"Industrial",103,"Fabricación de dispositivos de cableado","T2"]
[2740,"Industrial",103,"Fabricación de equipos eléctricos de iluminación","T2"]
[2750,"Industrial",103,"Fabricación de aparatos de uso doméstico","T2"]
[2790,"Industrial",103,"Fabricación de otros tipos de equipo eléctrico n.c.p.","T2"]
[2811,"Industrial",103,"Fabricación de motores, turbinas, y partes para motores de combustión interna.","T2"]
[2812,"Industrial",103,"Fabricación de equipos de potencia hidráulica y neumática.","T2"]
[2813,"Industrial",103,"Fabricación de otras bombas, compresores, grifos y válvulas.","T2"]
[2814,"Industrial",103,"Fabricación de cojinetes, engranajes, trenes de engranajes y piezas de transmisión.","T2"]
[2815,"Industrial",103,"Fabricación de hornos, hogares y quemadores industriales.","T2"]
[2816,"Industrial",103,"Fabricación de equipo de elevación y manipulación.","T2"]
[2817,"Industrial",103,"Fabricación de maquinaria y equipo de oficina (excepto computadoras y equipo periférico).","T2"]
[2818,"Industrial",103,"Fabricación de herramientas manuales con motor.","T2"]
[2819,"Industrial",103,"Fabricación de otros tipos de maquinaria y equipo de uso general n.c.p.","T2"]
[2821,"Industrial",103,"Fabricación de maquinaria agropecuaria y forestal.","T2"]
[2822,"Industrial",103,"Fabricación de máquinas formadoras de metal y de máquinas herramienta.","T2"]
[2823,"Industrial",103,"Fabricación de maquinaria para la metalurgia.","T2"]
[2824,"Industrial",103,"Fabricación de maquinaria para explotación de minas y canteras y para obras de construcción.","T2"]
[2825,"Industrial",103,"Fabricación de maquinaria para la elaboración de alimentos, bebidas y tabaco.","T2"]
[2826,"Industrial",103,"Fabricación de maquinaria para la elaboración de productos textiles, prendas de vestir y cueros.","T2"]
[2829,"Industrial",103,"Fabricación de otros tipos de maquinaria y equipo de uso especial n.c.p.","T2"]
[2910,"Industrial",102,"Fabricación de vehículos automotores y sus motores.","T2"]
[2920,"Industrial",102,"Fabricación de carrocerías para vehículos automotores; fabricación de remolques y semirremolques","T2"]
[2930,"Industrial",102,"Fabricación de partes, piezas (autopartes) y accesorios (lujos) para vehículos automotores.","T2"]
[3011,"Industrial",102,"Construcción de barcos y de estructuras flotantes.","T2"]
[3012,"Industrial",102,"Construcción de embarcaciones de recreo y deporte.","T2"]
[3020,"Industrial",102,"Fabricación de locomotoras y de material rodante para ferrocarriles.","T2"]
[3030,"Industrial",102,"Fabricación de aeronaves, naves espaciales y de maquinaria conexa.","T2"]
[3040,"Industrial",102,"Fabricación de vehículos militares de combate","T2"]
[3091,"Industrial",102,"Fabricación de motocicletas.","T2"]
[3092,"Industrial",102,"Fabricación de bicicletas y de sillas de ruedas para personas con discapacidad.","T2"]
[3099,"Industrial",102,"Fabricación de otros tipos de equipo de transporte n.c.p.","T2"]
[3110,"Industrial",103,"Fabricación de muebles.","T2"]
[3120,"Industrial",103,"Fabricación de colchones y somieres.","T2"]
[3210,"Industrial",103,"Fabricación de joyas, bisutería y artículos conexos","T2"]
[3220,"Industrial",103,"Fabricación de instrumentos musicales","T2"]
[3230,"Industrial",103,"Fabricación de artículos y equipo para la práctica del deporte.","T2"]
[3240,"Industrial",103,"Fabricación de juegos, juguetes y rompecabezas.","T2"]
[3250,"Industrial",103,"Fabricación de instrumentos, aparatos y materiales médicos y odontológicos (incluido mobiliario).","T2"]
[3290,"Industrial",103,"Otras industrias manufactureras n.c.p.","T2"]
[3311,"Servicios",304,"Mantenimiento y reparación especializado de productos elaborados en metal.","T2"]
[3312,"Servicios",304,"Mantenimiento y reparación especializado de maquinaria y equipo.","T2"]
[3313,"Servicios",304,"Mantenimiento y reparación especializado de equipo electrónico y óptico.","T2"]
[3314,"Servicios",304,"Mantenimiento y reparación especializado de equipo eléctrico.","T2"]
[3315,"Servicios",304,"Mantenimiento y reparación especializado de equipo de transporte, excepto los vehículos automotores, motocicletas y bicicletas.","T2"]
[3319,"Servicios",304,"Mantenimiento y reparación de otros tipos de equipos y sus componentes n.c.p.","T2"]
[3320,"Servicios",304,"Instalación especializada de maquinaria y equipo industrial.","T2"]
[3520,"Servicios",304,"Producción de gas; distribución de combustibles gaseosos por tuberías","T2"]
[3530,"Servicios",304,"Suministro de vapor y aire acondicionado.","T2"]
[3600,"Servicios",304,"Captación, tratamiento y distribución de agua.","T2"]
[3700,"Servicios",304,"Evacuación y tratamiento de aguas residuales.","T2"]
[3811,"Servicios",304,"Recolección de desechos no peligrosos.","T6"]
[3812,"Servicios",304,"Recolección de desechos peligrosos.","T2"]
[3821,"Industrial",104,"Tratamiento y disposición de desechos no peligrosos.","T2"]
[3822,"Industrial",104,"Tratamiento y disposición de desechos peligrosos.","T2"]
[3830,"Industrial",104,"Recuperación de materiales.","T6"]
[3900,"Servicios",304,"Actividades de saneamiento ambiental y otros servicios de gestión de desechos.","T2"]
[4111,"Servicios",302,"Construcción de edificios residenciales.","T2"]
[4112,"Servicios",302,"Construcción de edificios no residenciales","T2"]
[4210,"Servicios",302,"Construcción de carreteras y vías de ferrocarril.","T2"]
[4220,"Servicios",302,"Construcción de proyectos de servicio público.","T2"]
[4290,"Servicios",302,"Construcción de otras obras de ingeniería civil.","T2"]
[4311,"Servicios",302,"Demolición.","T2"]
[4312,"Servicios",302,"Preparación del terreno.","T2"]
[4321,"Servicios",302,"Instalaciones eléctricas.","T2"]
[4322,"Servicios",302,"Instalaciones de fontanería, calefacción y aire acondicionado.","T2"]
[4329,"Servicios",302,"Otras instalaciones especializadas.","T2"]
[4330,"Servicios",302,"Terminación y acabado de edificios y obras de ingeniería civil.","T2"]
[4390,"Servicios",302,"Otras actividades especializadas para la construcción de edificios y obras de ingeniería civil.","T2"]
[4511,"Comercial",202,"Comercio de vehículos automotores nuevos.","T2"]
[4512,"Comercial",202,"Comercio de vehículos automotores usados.","T2"]
[4520,"Servicios",304,"Mantenimiento y reparación de vehículos automotores.","T2"]
[4530,"Comercial",204,"Comercio de partes, piezas (autopartes) y accesorios (lujos) para vehículos automotores.","T2"]
[4541,"Comercial",204,"Comercio de motocicletas y de sus partes, piezas y accesorios.","T2"]
[4542,"Servicios",304,"Mantenimiento y reparación de motocicletas y de sus partes y piezas.","T2"]
[4610,"Servicios",304,"Comercio al por mayor a cambio de una retribución o por contrata","T2"]
[4620,"Comercial",201,"Comercio al por mayor de materias primas agropecuarias; animales vivos.","T2"]
[4631,"Comercial",201,"Comercio al por mayor de productos alimenticios.","T2"]
[4632,"Comercial",203,"Comercio al por mayor de bebidas y tabaco.","T2"]
[4641,"Comercial",204,"Comercio al por mayor de productos textiles, productos confeccionados para uso doméstico.","T2"]
[4642,"Comercial",204,"Comercio al por mayor de prendas de vestir.","T2"]
[4643,"Comercial",204,"Comercio al por mayor de calzado.","T2"]
[4644,"Comercial",204,"Comercio al por mayor de aparatos y equipo de uso doméstico.","T2"]
[4645,"Comercial",204,"Comercio al por mayor de productos farmacéuticos, medicinales, cosméticos y de tocador.","T2"]
[4649,"Comercial",204,"Comercio al por mayor de otros utensilios domésticos n.c.p.","T2"]
[4651,"Comercial",204,"Comercio al por mayor de computadores, equipo periférico y programas de informática.","T2"]
[4652,"Comercial",204,"Comercio al por mayor de equipo, partes y piezas electrónicos y de telecomunicaciones.","T2"]
[4653,"Comercial",204,"Comercio al por mayor de maquinaria y equipo agropecuarios.","T2"]
[4659,"Comercial",204,"Comercio al por mayor de otros tipos de maquinaria y equipo n.c.p.","T2"]
[4661,"Comercial",204,"Comercio al por mayor de combustibles sólidos, líquidos, gaseosos y productos conexos.","T2"]
[4662,"Comercial",204,"Comercio al por mayor de metales y productos metalíferos.","T2"]
[4663,"Comercial",204,"Comercio al por mayor de materiales de construcción, artículos de ferretería, pinturas, productos de vidrio, equipo y materiales de fontanería y calefacción.","T2"]
[4664,"Comercial",204,"Comercio al por mayor de productos químicos básicos, cauchos y plásticos en formas primarias y productos químicos de uso agropecuario.","T2"]
[4665,"Comercial",204,"Comercio al por mayor de desperdicios, desechos y chatarra.","T6"]
[4669,"Comercial",204,"Comercio al por mayor de otros productos n.c.p.","T2"]
[4690,"Comercial",204,"Comercio al por mayor no especializado","T2"]
[4719,"Comercial",201,"Comercio al por menor en establecimientos no especializados, con surtido compuesto principalmente por productos diferentes de alimentos (víveres en general), bebidas y tabaco.","T2"]
[4731,"Comercial",203,"Comercio al por menor de combustible para automotores.","T2"]
[4732,"Comercial",204,"Comercio al por menor de lubricantes (aceites, grasas), aditivos y productos de limpieza para vehículos automotores.","T2"]
[4741,"Comercial",204,"Comercio al por menor de computadores, equipos periféricos, programas de informática y equipos de telecomunicaciones en establecimientos especializados.","T2"]
[4742,"Comercial",204,"Comercio al por menor de equipos y aparatos de sonido y de video, en establecimientos especializados.","T2"]
[4751,"Comercial",204,"Comercio al por menor de productos textiles en establecimientos especializados.","T2"]
[4752,"Comercial",204,"Comercio al por menor de artículos de ferretería, pinturas y productos de vidrio en establecimientos especializados.","T2"]
[4753,"Comercial",204,"Comercio al por menor de tapices, alfombras y cubrimientos para paredes y pisos en establecimientos especializados.","T2"]
[4754,"Comercial",204,"Comercio al por menor de electrodomésticos y gasodomésticos de uso doméstico, muebles y equipos de iluminación.","T2"]
[4755,"Comercial",204,"Comercio al por menor de artículos y utensilios de uso doméstico.","T2"]
[4759,"Comercial",204,"Comercio al por menor de otros artículos domésticos en establecimientos especializados.","T2"]
[4761,"Comercial",204,"Comercio al por menor de libros, periódicos, materiales y artículos de papelería y escritorio, en establecimientos especializados.","T2"]
[4762,"Comercial",204,"Comercio al por menor de artículos deportivos, en establecimientos especializados.","T2"]
[4769,"Comercial",204,"Comercio al por menor de otros artículos culturales y de entretenimiento n.c.p. en establecimientos especializados","T2"]
[4771,"Comercial",204,"Comercio al por menor de prendas de vestir y sus accesorios (incluye artículos de piel) en establecimientos especializados.","T2"]
[4772,"Comercial",204,"Comercio al por menor de todo tipo de calzado y artículos de cuero y sucedáneos del cuero en establecimientos especializados.","T2"]
[4773,"Comercial",204,"Comercio al por menor de productos farmacéuticos y medicinales, cosméticos y artículos de tocador en establecimientos especializados.","T2"]
[4774,"Comercial",204,"Comercio al por menor de otros productos nuevos en establecimientos especializados.","T2"]
[4775,"Comercial",204,"Comercio al por menor de artículos de segunda mano.","T2"]
[4781,"Comercial",204,"Comercio al por menor de alimentos, bebidas y tabaco, en puestos de venta móviles.","T2"]
[4782,"Comercial",204,"Comercio al por menor de productos textiles, prendas de vestir y calzado, en puestos de venta móviles.","T2"]
[4789,"Comercial",204,"Comercio al por menor de otros productos en puestos de venta móviles.","T2"]
[4791,"Comercial",204,"Comercio al por menor realizado a través de internet.","T2"]
[4792,"Comercial",204,"Comercio al por menor realizado a través de casas de venta o por correo.","T2"]
[4799,"Comercial",204,"Otros tipos de comercio al por menor no realizado en establecimientos, puestos de venta o mercados.","T2"]
[5210,"Servicios",304,"Almacenamiento y depósito.","T2"]
[5221,"Servicios",304,"Actividades de estaciones, vías y servicios complementarios para el transporte terrestre.","T2"]
[5222,"Servicios",301,"Actividades de puertos y servicios complementarios para el transporte acuático.","T2"]
[5223,"Servicios",304,"Actividades de aeropuertos, servicios de navegación aérea y demás actividades conexas al transporte aéreo.","T2"]
[5224,"Servicios",304,"Manipulación de carga.","T2"]
[5511,"Servicios",303,"Alojamiento en hoteles.","T2"]
[5512,"Servicios",303,"Alojamiento en apartahoteles.","T2"]
[5513,"Servicios",303,"Alojamiento en centros vacacionales.","T2"]
[5514,"Servicios",303,"Alojamiento rural.","T2"]
[5519,"Servicios",303,"Otros tipos de alojamientos para visitantes.","T2"]
[5520,"Servicios",303,"Actividades de zonas de camping y parques para vehículos recreacionales.","T2"]
[5530,"Servicios",303,"Servicio por horas","T2"]
[5590,"Servicios",303,"Otros tipos de alojamiento n.c.p.","T2"]
[6110,"Servicios",304,"Actividades de telecomunicaciones alámbricas","T2"]
[6120,"Servicios",304,"Actividades de telecomunicaciones inalámbricas","T2"]
[6130,"Servicios",304,"Actividades de telecomunicación satelital","T2"]
[6190,"Servicios",304,"Otras actividades de telecomunicaciones","T2"]
[6810,"Servicios",304,"Actividades inmobiliarias realizadas con bienes propios o arrendados","T2"]
[6820,"Servicios",304,"Actividades inmobiliarias realizadas a cambio de una retribución o por contrata","T2"]
[7710,"Servicios",304,"Alquiler y arrendamiento de vehículos automotores","T2"]
[7721,"Servicios",304,"Alquiler y arrendamiento de equipo recreativo y deportivo","T2"]
[7722,"Servicios",304,"Alquiler de videos y discos","T2"]
[7729,"Servicios",304,"Alquiler y arrendamiento de otros efectos personales y enseres domésticos n.c.p.","T2"]
[7730,"Servicios",304,"Alquiler y arrendamiento de otros tipos de maquinaria, equipo y bienes tangibles n.c.p.","T2"]
[7740,"Servicios",304,"Arrendamiento de propiedad intelectual y productos similares, excepto obras protegidas por derechos de autor","T2"]
[7810,"Servicios",304,"Actividades de agencias de empleo","T2"]
[7820,"Servicios",304,"Actividades de agencias de empleo temporal","T2"]
[7830,"Servicios",304,"Otras actividades de suministro de recurso humano.","T2"]
[7911,"Servicios",304,"Actividades de las agencias de viaje.","T2"]
[7912,"Servicios",304,"Actividades de operadores turísticos","T2"]
[7990,"Servicios",304,"Otros servicios de reserva y actividades relacionadas.","T2"]
[8010,"Servicios",303,"Actividades de seguridad privada.","T2"]
[8020,"Servicios",303,"Actividades de servicios de sistemas de seguridad.","T2"]
[8030,"Servicios",303,"Actividades de detectives e investigadores privados.","T2"]
[8110,"Servicios",304,"Actividades combinadas de apoyo a instalaciones","T2"]
[8121,"Servicios",304,"Limpieza general interior de edificios.","T2"]
[8129,"Servicios",304,"Otras actividades de limpieza de edificios e instalaciones industriales.","T2"]
[8130,"Servicios",304,"Actividades de paisajismo y servicios de mantenimiento conexos","T2"]
[8211,"Servicios",304,"Actividades combinadas de servicios administrativos de oficina.","T2"]
[8219,"Servicios",304,"Fotocopiado, preparación de documentos y otras actividades especializadas de apoyo a oficina.","T2"]
[8220,"Servicios",304,"Actividades de centros de llamadas (Call center).","T2"]
[8230,"Servicios",304,"Organización de convenciones y eventos comerciales.","T2"]
[8291,"Servicios",304,"Actividades de agencias de cobranza y oficinas de calificación crediticia.","T2"]
[8292,"Servicios",304,"Actividades de envase y empaque.","T2"]
[8299,"Servicios",304,"Otras actividades de servicio de apoyo a las empresas n.c.p.","T2"]
[8560,"Servicios",304,"Actividades de apoyo a la educación.","T2"]
[8610,"Servicios",304,"Actividades de hospitales y clínicas, con internación","T2"]
[8710,"Servicios",304,"Actividades de atención residencial medicalizada de tipo general","T2"]
[8720,"Servicios",304,"Actividades de atención residencial, para el cuidado de pacientes con retardo mental, enfermedad mental y consumo de sustancias psicoactivas","T2"]
[8730,"Servicios",304,"Actividades de atención en instituciones para el cuidado de personas mayores y/o discapacitadas.","T2"]
[8790,"Servicios",304,"Otras actividades de atención en instituciones con alojamiento","T2"]
[8810,"Servicios",304,"Actividades de asistencia social sin alojamiento para personas mayores y discapacitadas.","T2"]
[8890,"Servicios",304,"Otras actividades de asistencia social sin alojamiento","T2"]
[9200,"Servicios",304,"Actividades de juegos de azar y apuestas","T2"]
[9321,"Servicios",304,"Actividades de parques de atracciones y parques temáticos.","T2"]
[9329,"Servicios",304,"Otras actividades recreativas y de esparcimiento n.c.p","T2"]
[9511,"Servicios",304,"Mantenimiento y reparación de computadores y de equipo periférico.","T2"]
[9512,"Servicios",304,"Mantenimiento y reparación de equipos de comunicación.","T2"]
[9521,"Servicios",304,"Mantenimiento y reparación de aparatos electrónicos de consumo.","T2"]
[9522,"Servicios",304,"Mantenimiento y reparación de aparatos y equipos domésticos y de jardinería.","T2"]
[9523,"Servicios",304,"Reparación de calzado y artículos de cuero.","T2"]
[9524,"Servicios",304,"Reparación de muebles y accesorios para el hogar.","T2"]
[9529,"Servicios",304,"Mantenimiento y reparación de otros efectos personales y enseres domésticos.","T2"]
[9601,"Servicios",304,"Lavado y limpieza, incluso la limpieza en seco, de productos textiles y de piel.","T2"]
[9603,"Servicios",304,"Pompas fúnebres y actividades relacionadas.","T2"]
[9609,"Servicios",304,"Otras actividades de servicios personales n.c.p.","T2"]
[111,"Primaria",null,"Cultivo de cereales (excepto arroz), legumbres y semillas oleaginosas.","T2"]
[112,"Primaria",null,"Cultivo de arroz.","T2"]
[113,"Primaria",null,"Cultivo de hortalizas, raíces y tubérculos.","T2"]
[114,"Primaria",null,"Cultivo de tabaco.","T2"]
[115,"Primaria",null,"Cultivo de plantas textiles.","T2"]
[119,"Primaria",null,"Otros cultivos transitorios n.c.p.","T2"]
[121,"Primaria",null,"Cultivo de frutas tropicales y subtropicales.","T2"]
[122,"Primaria",null,"Cultivo de plátano y banano.","T2"]
[123,"Primaria",null,"Cultivo de café.","T2"]
[124,"Primaria",null,"Cultivo de caña de azúcar.","T2"]
[125,"Primaria",null,"Cultivo de flor de corte.","T2"]
[126,"Primaria",null,"Cultivo de palma para aceite (palma africana) y otros frutos oleaginosos.","T2"]
[127,"Primaria",null,"Cultivo de plantas con las que se preparan bebidas.","T2"]
[128,"Primaria",null,"Cultivo de especias y de plantas aromáticas y medicinales.","T2"]
[129,"Primaria",null,"Otros cultivos permanentes n.c.p.","T2"]
[130,"Primaria",null,"Propagación de plantas (actividades de los viveros, excepto viveros).","T2"]
[141,"Primaria",null,"Cría de ganado bovino y bufalino.","T2"]
[142,"Primaria",null,"Cría de caballos y otros equinos.","T2"]
[143,"Primaria",null,"Cría de ovejas y cabras.","T2"]
[144,"Primaria",null,"Cría de ganado porcino.","T2"]
[145,"Primaria",null,"Cría de aves de corral.","T2"]
[149,"Primaria",null,"Cría de otros animales n.c.p.","T2"]
[150,"Primaria",null,"Explotación mixta (agrícola y pecuaria).","T2"]
[163,"Primaria",null,"Actividades posteriores a la cosecha.","T2"]
[170,"Primaria",null,"Caza ordinaria y mediante trampas y actividades de servicios conexas.","T2"]
[210,"Primaria",null,"Silvicultura y otras actividades forestales.","T2"]
[220,"Primaria",null,"Extracción de madera.","T2"]
[230,"Primaria",null,"Recolección de productos forestales diferentes a la madera.","T2"]
[311,"Primaria",null,"Pesca marítima.","T2"]
[312,"Primaria",null,"Pesca de agua dulce.","T2"]
[321,"Primaria",null,"Acuicultura marítima.","T2"]
[322,"Primaria",null,"Acuicultura de agua dulce.","T2"]
[9001,"Cultural",null,"Creación literaria.","T2"]
[9002,"Cultural",null,"Creación musical.","T2"]
[9003,"Cultural",null,"Creación teatral.","T2"]
[9004,"Cultural",null,"Creación audiovisual.","T2"]
[9005,"Cultural",null,"Artes plásticas y visuales.","T2"]
[9006,"Cultural",null,"Actividades teatrales.","T2"]
[9007,"Cultural",null,"Actividades de espectáculos musicales en vivo.","T2"]
[9008,"Cultural",null,"Otras actividades de espectáculos en vivo.","T2"]
[9101,"Cultural",null,"Actividades de bibliotecas y archivos.","T2"]
[9102,"Cultural",null,"Actividades y funcionamiento de museos, conservación de edificios y sitios históricos.","T2"]
[9103,"Cultural",null,"Actividades de jardines botánicos, zoológicos y reservas naturales.","T2"]
[9311,"Deportiva",null,"Gestión de instalaciones deportivas.","T2"]
[9312,"Deportiva",null,"Actividades de clubes deportivos.","T2"]
[9319,"Deportiva",null,"Otras actividades deportivas.","T2"]
[9700,"Hogares",null,"Actividades de los hogares individuales como empleadores de personal doméstico.","T2"]
[9810,"Hogares",null,"Actividades no diferenciadas de los hogares individuales como productores de bienes para uso propio.","T2"]
[9820,"Hogares",null,"Actividades no diferenciadas de los hogares individuales como productores de servicios para uso propio.","T2"]
[5811,"Industrial",101,"Edición de libros.","T2"]
[5812,"Industrial",103,"Edición de directorios y listas de correo.","T2"]
[5813,"Servicios",301,"Edición de periódicos, revistas y otras publicaciones periódicas.","T2"]
[5819,"Industrial",103,"Otros trabajos de edición","T2"]
[5820,"Industrial",103,"Edición de programas de informática (software).","T2"]
[5911,"Industrial",103,"Actividades de producción de películas cinematográficas videos, programas, anuncios y comerciales de televisión.","T2"]
[5912,"Industrial",103,"Actividades de posproducción de películas cinematográficas videos, programas, anuncios y comerciales de televisión.","T2"]
[5913,"Servicios",304,"Actividades de distribución de películas cinematográficas videos, programas, anuncios y comerciales de televisión.","T2"]
[5914,"Servicios",302,"Actividades de exhibición de películas cinematográficas y videos.","T2"]
[5920,"Industrial",103,"Actividades de grabación de sonido y edición de música","T2"]
[6010,"Servicios",301,"Actividades de programación y transmisión en el servicio de radiodifusión sonora","T2"]
[6020,"Servicios",301,"Actividades de programación y transmisión de televisión","T2"]
[6201,"Servicios",304,"Actividades de desarrollo de sistemas informáticos (planificación, análisis, diseño, programación, pruebas)","T5"]
[6202,"Servicios",302,"Actividades de consultoría informática y actividades de administración de instalaciones informáticas.","T5"]
[6209,"Servicios",304,"Otras actividades de tecnologías de información y actividades de servicios informáticos","T2"]
[6311,"Servicios",304,"Procesamiento de datos, alojamiento (hosting) y actividades relacionadas.","T2"]
[6312,"Servicios",304,"Portales web","T2"]
[6391,"Servicios",304,"Actividades de agencias de noticias.","T2"]
[6399,"Servicios",304,"Otras actividades de servicio de información n.c.p.","T2"]
[6494,"Servicios",303,"Otras actividades de distribución de fondos","T2"]
[6499,"Servicios",303,"Otras actividades de servicio financiero, excepto las de seguros y pensiones n.c.p.","T5"]
[6611,"Servicios",304,"Administración de mercados financieros","T5"]
[6612,"Servicios",304,"Corretaje de valores y de contratos de productos básicos","T5"]
[6613,"Servicios",304,"Otras actividades relacionadas con el mercado de valores","T5"]
[6614,"Servicios",303,"Actividades de las casas de cambio","T5"]
[6615,"Servicios",303,"Actividades de los profesionales de compra y venta de divisas","T5"]
[6619,"Servicios",304,"Otras actividades auxiliares de las actividades de servicios financieros n.c.p.","T5"]
[6621,"Servicios",304,"Actividades de agentes y corredores de seguros","T5"]
[6629,"Servicios",304,"Evaluación de riesgos y daños, y otras actividades de servicios auxiliares","T5"]
[6630,"Servicios",304,"Actividades de administración de fondos","T5"]
[6910,"Servicios",304,"Actividades jurídicas.","T5"]
[6920,"Servicios",304,"Actividades de contabilidad, teneduría de libros, auditoría financiera y asesoría tributaria.","T5"]
[7010,"Servicios",304,"Actividades de administración empresarial.","T5"]
[7020,"Servicios",304,"Actividades de consultoría de gestión.","T5"]
[7110,"Servicios",304,"Actividades de arquitectura e ingeniería y otras actividades conexas de consultoría técnica.","T5"]
[7120,"Servicios",304,"Ensayos y análisis técnicos.","T5"]
[7210,"Servicios",304,"Investigaciones y desarrollo experimental en el campo de las ciencias naturales y la ingeniería.","T5"]
[7220,"Servicios",302,"Investigaciones y desarrollo experimental en el campo de las ciencias sociales y las humanidades.","T5"]
[7310,"Servicios",304,"Publicidad","T5"]
[7320,"Servicios",304,"Estudios de mercado y realización de encuestas de opinión pública.","T5"]
[7410,"Servicios",304,"Actividades especializadas de diseño.","T5"]
[7420,"Servicios",304,"Actividades de fotografía","T5"]
[7490,"Servicios",304,"Otras actividades profesionales, científicas y técnicas n.c.p.","T5"]
[7500,"Servicios",304,"Actividades veterinarias.","T5"]
[8511,"Servicios",305,"Educación de la primera infancia.","T4"]
[8512,"Servicios",305,"Educación preescolar.","T4"]
[8513,"Servicios",305,"Educación básica primaria.","T4"]
[8521,"Servicios",305,"Educación básica secundaria.","T4"]
[8522,"Servicios",305,"Educación media académica.","T4"]
[8523,"Servicios",305,"Educación media técnica y de formación laboral.","T4"]
[8530,"Servicios",305,"Establecimientos que combinan diferentes niveles de educación.","T4"]
[8541,"Servicios",304,"Educación técnica profesional.","T4"]
[8542,"Servicios",304,"Educación tecnológica.","T4"]
[8543,"Servicios",304,"Educación de instituciones universitarias o de escuelas tecnológicas.","T4"]
[8544,"Servicios",304,"Educación de universidades.","T4"]
[8551,"Servicios",304,"Formación académica no formal.","T4"]
[8552,"Servicios",304,"Enseñanza deportiva y recreativa.","T4"]
[8553,"Servicios",304,"Enseñanza cultural.","T4"]
[8559,"Servicios",304,"Otros tipos de educación n.c.p.","T4"]
[8621,"Servicios",304,"Actividades de la práctica médica, sin internación.","T4"]
[8622,"Servicios",304,"Actividades de la práctica odontológica.","T4"]
[8691,"Servicios",304,"Actividades de apoyo diagnóstico.","T4"]
[8692,"Servicios",304,"Actividades de apoyo terapéutico.","T4"]
[8699,"Servicios",304,"Otras actividades de atención de la salud humana.","T4"]
[5611,"Servicios",303,"Expendio a la mesa de comidas preparadas.","T3"]
[5612,"Servicios",303,"Expendio por autoservicio de comidas preparadas.","T3"]
[5613,"Servicios",303,"Expendio de comidas preparadas en cafeterías.","T3"]
[5619,"Servicios",303,"Otros tipos de expendio de comidas preparadas n.c.p.","T3"]
[5621,"Servicios",303,"Catering para eventos.","T3"]
[5629,"Servicios",303,"Actividades de otros servicios de comidas.","T3"]
[5630,"Servicios",303,"Expendio de bebidas alcohólicas para el consumo dentro del establecimiento","T3"]
[4911,"Servicios",301,"Transporte férreo de pasajeros.","T3"]
[4912,"Servicios",301,"Transporte férreo de carga.","T3"]
[4921,"Servicios",301,"Transporte de pasajeros.","T3"]
[4922,"Servicios",301,"Transporte mixto.","T3"]
[4923,"Servicios",301,"Transporte de carga por carretera.","T3"]
[4930,"Servicios",301,"Transporte por tuberías.","T3"]
[5011,"Servicios",301,"Transporte de pasajeros marítimo y de cabotaje.","T3"]
[5012,"Servicios",301,"Transporte de carga marítimo y de cabotaje.","T3"]
[5021,"Servicios",301,"Transporte fluvial de pasajeros.","T3"]
[5022,"Servicios",301,"Transporte fluvial de carga.","T3"]
[5111,"Servicios",301,"Transporte aéreo nacional de pasajeros.","T3"]
[5112,"Servicios",301,"Transporte aéreo internacional de pasajeros.","T3"]
[5121,"Servicios",301,"Transporte aéreo nacional de carga.","T3"]
[5122,"Servicios",301,"Transporte aéreo internacional de carga.","T3"]
[5229,"Servicios",304,"Otras actividades complementarias al transporte.","T3"]
[5310,"Servicios",304,"Actividades postales nacionales.","T3"]
[5320,"Servicios",304,"Actividades de mensajería.","T3"]

{"sheet":"Tarifa PN","index":4,"n_rows":16,"n_cols":5,"rows_kept":16,"cut":false,"hidden":true,"merged":[[0,0,0,4]]}
["TARIFA DE RENTA PERSONAS NATURALES. ART. 241 E.T."]
[]
[]
["Rangos en UVT",null,"Tarifa Marginal","Instrucción para calcular la retención (\"impuesto\") en $","Calculo en $ del valor de la retención"]
["desde","Hasta"]
[0,1090,0,"Ninguna",0]
[">1090",1700,0.19,"(Ingreso laboral gravado expresado en UVT menos 1090 UVT)*19%",{"$f":"IF($E$16>1090,(IF($E$16<=1700,ROUND(((($E$16-1090)*19%)*PLANTILLA!$C$34),-3),0)),0)","v":0}]
[">1700",4100,0.28000000000000003,"(Ingreso laboral gravado expresado en UVT menos 1700 UVT)*28% más 116 UVT",{"$f":"IF($E$16>1700,(IF($E$16<=4100,ROUND((((($E$16-1700)*28%)+116)*PLANTILLA!$C$34),-3),0)),0)","v":9932000}]
[">4100",8670,0.33,"(Ingreso laboral gravado expresado en UVT menos 4100 UVT)*33% más 788 UVT",{"$f":"IF($E$16>4100,(IF($E$16<=8670,ROUND((((($E$16-4100)*33%)+788)*PLANTILLA!$C$34),-3),0)),0)","v":0}]
[">8670",18970,0.35,"(Ingreso laboral gravado expresado en UVT menos 8670 UVT)*35% más 2296 UVT",{"$f":"IF($E$16>8670,(IF($E$16<=18970,ROUND((((($E$16-8670)*35%)+2296)*PLANTILLA!$C$34),-3),0)),0)","v":0}]
[">18970",31000,0.37,"(Ingreso laboral gravado expresado en UVT menos 18970 UVT)*37% más 5901 UVT",{"$f":"IF($E$16>18970,(IF($E$16<=31000,ROUND((((($E$16-18970)*37%)+5901)*PLANTILLA!$C$34),-3),0)),0)","v":0}]
[">31000","En adelante",0.39,"(Ingreso laboral gravado expresado en UVT menos 31000 UVT)*39% más 10352 UVT",{"$f":"IF($E$16>31000,ROUND(((($E$16-31000)*39%)+10352)*(PLANTILLA!$C$34),-3),0)","v":0}]
[]
[]
["RENTA LÍQUIDA EN PESOS",null,null,null,{"$f":"+IF(PLANTILLA!C12=\"Persona Natural\",PLANTILLA!C32,0)","v":90000000}]
["RENTA LÍQUIDA EN UVT",null,null,null,{"$f":"+E15/PLANTILLA!C34","v":2122.0409318117513}]

{"sheet":"Tarifas SIMPLE","index":5,"n_rows":64,"n_cols":8,"rows_kept":64,"cut":false,"hidden":true,"merged":[[0,1,0,6],[8,1,8,2],[8,3,8,4],[57,3,57,4],[57,1,57,2],[55,0,55,5],[49,3,49,4],[17,0,17,5],[49,1,49,2],[47,0,47,5],[19,3,19,4],[19,1,19,2],[29,1,29,2],[29,3,29,4],[39,1,39,2],[39,3,39,4]]}
[null,"TARIFAS RÉGIMEN SIMPLE"]
[]
[null,"INGRESOS EN PESOS",null,null,null,{"$f":"+PLANTILLA!C28","v":582000000}]
[]
[null,"INRESOS EN UVT",null,null,null,{"$f":"+F3/PLANTILLA!$C$34","v":13722.531359049326}]
[]
["1. Tiendas pequeñas, mini-mercados, micro-mercados y peluquería:"]
[]
[null,"INGRESOS BRUTOS ANUALES",null,"TARIFA SIMPLE"]
[null,"IGUAL O SUPERIOR (UVT)","INFERIOR (UVT)","CONSOLIDADA","IMPUESTO"]
[null,0,6000,1.2E-2,{"$f":"IF($F$5<6000,ROUND(($F$5*D11*PLANTILLA!$C$34),-3),0)","v":0}]
[null,6000,15000,2.8000000000000001E-2,{"$f":"IF(($F$5)>=6000,(IF($F$5<15000,ROUND((($F$5*D12)*PLANTILLA!$C$34),-3),0)),0)","v":16296000}]
[null,15000,30000,4.3999999999999997E-2,{"$f":"IF(($F$5)>=15000,(IF($F$5<30000,ROUND((($F$5*D13)*PLANTILLA!$C$34),-3),0)),0)","v":0}]
[null,30000,100000,5.6000000000000001E-2,{"$f":"IF(($F$5)>=30000,(IF($F$5<100000,ROUND((($F$5*D14)*PLANTILLA!$C$34),-3),0)),0)","v":0}]
[{"$nulls":4},{"$f":"SUM(E11:E14)","v":16296000}]
[]
[]
["2. Actividades comerciales al por mayor y detal; servicios técnicos y mecánicos en los que predomina el factor material sobre el intelectual, los electricistas, los albañiles, los servicios de construcción y los talleres mecánicos de vehículos y electrodomésticos; actividades industriales, incluidas las de agro-industria, miniindustria y micro-industria; actividades de telecomunicaciones; y las demás actividades no incluidas en los siguientes numerales:"]
[]
[null,"INGRESOS BRUTOS ANUALES",null,"TARIFA SIMPLE"]
[null,"IGUAL O SUPERIOR (UVT)","INFERIOR (UVT)","CONSOLIDADA","IMPUESTO"]
[null,0,6000,1.6E-2,{"$f":"IF($F$5<6000,ROUND(($F$5*D22*PLANTILLA!$C$34),-3),0)","v":0}]
[null,6000,15000,0.02,{"$f":"IF(($F$5)>=6000,(IF($F$5<15000,ROUND((($F$5*D23)*PLANTILLA!$C$34),-3),0)),0)","v":11640000}]
[null,15000,30000,3.5000000000000003E-2,{"$f":"IF(($F$5)>=15000,(IF($F$5<30000,ROUND((($F$5*D24)*PLANTILLA!$C$34),-3),0)),0)","v":0}]
[null,30000,100000,4.4999999999999998E-2,{"$f":"IF(($F$5)>=30000,(IF($F$5<100000,ROUND((($F$5*D25)*PLANTILLA!$C$34),-3),0)),0)","v":0}]
[{"$nulls":4},{"$f":"SUM(E22:E25)","v":11640000}]
[]
["3. Actividades de expendio de comidas y bebidas, y actividades de transporte:"]
[]
[null,"INGRESOS BRUTOS ANUALES",null,"TARIFA SIMPLE"]
[null,"IGUAL O SUPERIOR (UVT)","INFERIOR (UVT)","CONSOLIDADA","IMPUESTO"]
[null,0,6000,3.1E-2,{"$f":"IF($F$5<6000,ROUND(($F$5*D32*PLANTILLA!$C$34),-3),0)","v":0},null,null,{"$f":"38004*C32","v":228024000}]
[null,6000,15000,3.4000000000000002E-2,{"$f":"IF(($F$5)>=6000,(IF($F$5<15000,ROUND((($F$5*D33)*PLANTILLA!$C$34),-3),0)),0)","v":19788000},null,null,{"$f":"+H32*D32","v":7068744}]
[null,15000,30000,0.04,{"$f":"IF(($F$5)>=15000,(IF($F$5<30000,ROUND((($F$5*D34)*PLANTILLA!$C$34),-3),0)),0)","v":0}]
[null,30000,100000,4.4999999999999998E-2,{"$f":"IF(($F$5)>=30000,(IF($F$5<100000,ROUND((($F$5*D35)*PLANTILLA!$C$34),-3),0)),0)","v":0}]
[{"$nulls":4},{"$f":"SUM(E32:E35)","v":19788000}]
[]
["4 Educación y actividades de atención de la salud humana y de asistencia social:"]
[]
[null,"INGRESOS BRUTOS ANUALES",null,"TARIFA SIMPLE"]
[null,"IGUAL O SUPERIOR (UVT)","INFERIOR (UVT)","CONSOLIDADA","IMPUESTO"]
[null,0,6000,3.6999999999999998E-2,{"$f":"IF($F$5<6000,ROUND(($F$5*D42*PLANTILLA!$C$34),-3),0)","v":0}]
[null,6000,15000,0.05,{"$f":"IF(($F$5)>=6000,(IF($F$5<15000,ROUND((($F$5*D43)*PLANTILLA!$C$34),-3),0)),0)","v":29100000}]
[null,15000,30000,5.3999999999999999E-2,{"$f":"IF(($F$5)>=15000,(IF($F$5<30000,ROUND((($F$5*D44)*PLANTILLA!$C$34),-3),0)),0)","v":0}]
[null,30000,100000,5.8999999999999997E-2,{"$f":"IF(($F$5)>=30000,(IF($F$5<100000,ROUND((($F$5*D45)*PLANTILLA!$C$34),-3),0)),0)","v":0}]
[{"$nulls":4},{"$f":"SUM(E42:E45)","v":29100000}]
[]
["5. Servicios profesionales, de consultoría y científicos en los que predomine el factor intelectual sobre el material, incluidos los servicios de profesiones liberales:"]
[]
[null,"INGRESOS BRUTOS ANUALES",null,"TARIFA SIMPLE"]
[null,"IGUAL O SUPERIOR (UVT)","INFERIOR (UVT)","CONSOLIDADA","IMPUESTO"]
[null,0,6000,7.2999999999999995E-2,{"$f":"IF($F$5<6000,ROUND(($F$5*D52*PLANTILLA!$C$34),-3),0)","v":0}]
[null,6000,12000,8.3000000000000004E-2,{"$f":"IF(($F$5)>=6000,(IF($F$5<12000,ROUND((($F$5*D53)*PLANTILLA!$C$34),-3),0)),0)","v":0}]
[{"$nulls":4},{"$f":"SUM(E52:E53)","v":0}]
[]
["6. Actividades clasificadas en codigos CIIU 4665,3830, 3811"]
[]
[null,"INGRESOS BRUTOS ANUALES",null,"TARIFA SIMPLE"]
[null,"IGUAL O SUPERIOR (UVT)","INFERIOR (UVT)","CONSOLIDADA","IMPUESTO"]
[null,0,6000,1.6199999999999999E-2,{"$f":"IF($F$5<6000,ROUND(($F$5*D60*PLANTILLA!$C$34),-3),0)","v":0}]
[null,6000,15000,1.6199999999999999E-2,{"$f":"IF(($F$5)>=6000,(IF($F$5<15000,ROUND((($F$5*D61)*PLANTILLA!$C$34),-3),0)),0)","v":9428000}]
[null,15000,30000,1.6199999999999999E-2,{"$f":"IF(($F$5)>=15000,(IF($F$5<30000,ROUND((($F$5*D62)*PLANTILLA!$C$34),-3),0)),0)","v":0}]
[null,30000,80000,1.6199999999999999E-2,{"$f":"IF(($F$5)>=30000,(IF($F$5<100000,ROUND((($F$5*D63)*PLANTILLA!$C$34),-3),0)),0)","v":0}]
[{"$nulls":4},{"$f":"SUM(E60:E63)","v":9428000}]